[Event "*** Titled Tuesday Blitz"]
[Site "Chess.com"]
[Date "2020.04.21"]
[Round "8"]
[White "Boorchess"]
[Black "WPWPWP-2015"]
[Result "1-0"]
[WhiteElo "2558"]
[BlackElo "2407"]
[TimeControl "180+1"]
[EndTime "11:40:43 PDT"]
[Termination "Boorchess won on time"]

1. d4 {[%clk 0:03:00.9]} 1... Nf6 {[%clk 0:02:59.1]} 2. Nf3 {[%clk 0:03:00.2]}
2... e6 {[%clk 0:02:58.5]} 3. Bf4 {[%clk 0:02:59.9]} 3... c5 {[%clk 0:02:57.4]}
4. e3 {[%clk 0:03:00]} 4... cxd4 {[%clk 0:02:56.7]} 5. exd4 {[%clk 0:02:59.8]}
5... Nc6 {[%clk 0:02:56.1]} 6. c3 {[%clk 0:02:59.1]} 6... Be7 {[%clk 0:02:55.2]}
7. Nbd2 {[%clk 0:02:57.9]} 7... O-O {[%clk 0:02:54.9]} 8. Bd3 {[%clk 0:02:57.4]}
8... d6 {[%clk 0:02:54.8]} 9. O-O {[%clk 0:02:56.2]} 9... b6 {[%clk 0:02:53.8]}
10. Re1 {[%clk 0:02:55.5]} 10... Bb7 {[%clk 0:02:53.6]} 11. h3 {[%clk
0:02:54.1]} 11... h6 {[%clk 0:02:52.1]} 12. a4 {[%clk 0:02:52.5]} 12... Rc8
{[%clk 0:02:39.9]} 13. Bh2 {[%clk 0:02:51.2]} 13... Nb8 {[%clk 0:02:38.6]} 14.
Qe2 {[%clk 0:02:49.6]} 14... Nbd7 {[%clk 0:02:36.6]} 15. Ba6 {[%clk 0:02:47.5]}
15... Qc7 {[%clk 0:02:33.9]} 16. Rac1 {[%clk 0:02:37.4]} 16... Rfe8 {[%clk
0:02:27]} 17. Bb5 {[%clk 0:02:24.6]} 17... Rcd8 {[%clk 0:02:22.4]} 18. Ra1
{[%clk 0:02:15.3]} 18... Nd5 {[%clk 0:02:04.5]} 19. Bd3 {[%clk 0:02:05.7]} 19...
N5f6 {[%clk 0:02:03.2]} 20. a5 {[%clk 0:01:55.6]} 20... Bc6 {[%clk 0:01:52]} 21.
axb6 {[%clk 0:01:54.3]} 21... axb6 {[%clk 0:01:51.3]} 22. Bc4 {[%clk 0:01:45.3]}
22... Bf8 {[%clk 0:01:42.5]} 23. Qd1 {[%clk 0:01:37.9]} 23... Ra8 {[%clk
0:01:36]} 24. Qb3 {[%clk 0:01:36.6]} 24... Nd5 {[%clk 0:01:30.1]} 25. Rec1
{[%clk 0:01:29.1]} 25... b5 {[%clk 0:00:54.7]} 26. Bd3 {[%clk 0:01:28.5]} 26...
Qb7 {[%clk 0:00:54]} 27. Qd1 {[%clk 0:01:22.5]} 27... f5 {[%clk 0:00:49.9]} 28.
Qe2 {[%clk 0:01:15.6]} 28... N7f6 {[%clk 0:00:44.1]} 29. Rxa8 {[%clk 0:01:07.7]}
29... Qxa8 {[%clk 0:00:41.4]} 30. Bxb5 {[%clk 0:01:04]} 30... e5 {[%clk
0:00:31.3]} 31. dxe5 {[%clk 0:00:54.1]} 31... dxe5 {[%clk 0:00:29.8]} 32. Bxc6
{[%clk 0:00:49.9]} 32... Qxc6 {[%clk 0:00:28.7]} 33. Nxe5 {[%clk 0:00:48.4]}
33... Qb7 {[%clk 0:00:25.8]} 34. Ndc4 {[%clk 0:00:40.8]} 34... Bc5 {[%clk
0:00:23.5]} 35. b4 {[%clk 0:00:33.7]} 35... Bf8 {[%clk 0:00:22.6]} 36. Qf3
{[%clk 0:00:28.7]} 36... Ne4 {[%clk 0:00:19.1]} 37. Qxf5 {[%clk 0:00:24.8]}
37... Nexc3 {[%clk 0:00:17.8]} 38. Rf1 {[%clk 0:00:18.2]} 38... Bxb4 {[%clk
0:00:16.1]} 39. Kh1 {[%clk 0:00:15.2]} 39... Qe7 {[%clk 0:00:12.4]} 40. Qg4
{[%clk 0:00:12.5]} 40... Qe6 {[%clk 0:00:09.2]} 41. Nf3 {[%clk 0:00:09.9]} 41...
Qxg4 {[%clk 0:00:08.6]} 42. hxg4 {[%clk 0:00:10.3]} 42... Nf6 {[%clk 0:00:08.7]}
43. g5 {[%clk 0:00:09.8]} 43... Ng4 {[%clk 0:00:08.1]} 44. Bg3 {[%clk
0:00:08.3]} 44... Ne4 {[%clk 0:00:07.5]} 45. gxh6 {[%clk 0:00:07]} 45... Nxg3+
{[%clk 0:00:06.6]} 46. fxg3 {[%clk 0:00:07.3]} 46... gxh6 {[%clk 0:00:07.1]} 47.
Rb1 {[%clk 0:00:05.4]} 47... Bc5 {[%clk 0:00:06.9]} 48. Ncd2 {[%clk 0:00:04.9]}
48... Nf2+ {[%clk 0:00:06.6]} 49. Kh2 {[%clk 0:00:04.9]} 49... Ng4+ {[%clk
0:00:06.8]} 50. Kh3 {[%clk 0:00:05]} 50... Nf2+ {[%clk 0:00:05.6]} 51. Kh2
{[%clk 0:00:03.1]} 51... Ng4+ {[%clk 0:00:04.5]} 52. Kh3 {[%clk 0:00:02.6]}
52... Nf6 {[%clk 0:00:04.8]} 53. Kh2 {[%clk 0:00:02.9]} 53... Re2 {[%clk
0:00:03.9]} 54. Rc1 {[%clk 0:00:03]} 54... Bd6 {[%clk 0:00:03.7]} 55. Rc8+
{[%clk 0:00:02.9]} 55... Kf7 {[%clk 0:00:03.2]} 56. Rc6 {[%clk 0:00:03.8]} 56...
Ng4+ {[%clk 0:00:02.8]} 57. Kh3 {[%clk 0:00:04]} 57... Nf2+ {[%clk 0:00:02.9]}
58. Kh2 {[%clk 0:00:04.4]} 58... Bf8 {[%clk 0:00:02.8]} 59. Rc7+ {[%clk
0:00:03.4]} 59... Kg8 {[%clk 0:00:03.4]} 60. Rc6 {[%clk 0:00:03.6]} 60... Re5
{[%clk 0:00:03.8]} 61. Kg1 {[%clk 0:00:02.8]} 61... Re7 {[%clk 0:00:03.8]} 62.
Kxf2 {[%clk 0:00:02]} 62... Bg7 {[%clk 0:00:04.2]} 63. Rc8+ {[%clk 0:00:01.9]}
63... Kh7 {[%clk 0:00:04.3]} 64. Rc2 {[%clk 0:00:02.7]} 64... Rd7 {[%clk
0:00:04.5]} 65. Kg1 {[%clk 0:00:03.1]} 65... Re7 {[%clk 0:00:04.6]} 66. Kh2
{[%clk 0:00:03.6]} 66... Re6 {[%clk 0:00:04.5]} 67. Rc4 {[%clk 0:00:04.5]} 67...
Re7 {[%clk 0:00:04.7]} 68. Re4 {[%clk 0:00:04.8]} 68... Rd7 {[%clk 0:00:04.8]}
69. Rf4 {[%clk 0:00:05.2]} 69... Re7 {[%clk 0:00:04.7]} 70. Ne4 {[%clk
0:00:05.4]} 70... Re6 {[%clk 0:00:05]} 71. Nf2 {[%clk 0:00:05.1]} 71... Re7
{[%clk 0:00:04.9]} 72. Nh3 {[%clk 0:00:06]} 72... Rb7 {[%clk 0:00:04.6]} 73. Rh4
{[%clk 0:00:06.4]} 73... Kg6 {[%clk 0:00:04.4]} 74. Nf4+ {[%clk 0:00:06.2]}
74... Kf5 {[%clk 0:00:03.8]} 75. Rh5+ {[%clk 0:00:06.2]} 75... Kg4 {[%clk
0:00:01.7]} 76. Ra5 {[%clk 0:00:06]} 76... Rd7 {[%clk 0:00:01.2]} 77. Ra6 {[%clk
0:00:06]} 77... Re7 {[%clk 0:00:01.4]} 78. Rg6+ {[%clk 0:00:05.4]} 78... Kf5
{[%clk 0:00:02.1]} 79. Nh4+ {[%clk 0:00:05.6]} 79... Ke4 {[%clk 0:00:02.2]} 80.
Re6+ {[%clk 0:00:06.3]} 1-0

[Event "*** Titled Tuesday Blitz"]
[Site "Chess.com"]
[Date "2020.04.21"]
[Round "8"]
[White "aNaartjieZA"]
[Black "Lion-Al-Messi"]
[Result "1-0"]
[WhiteElo "2600"]
[BlackElo "2446"]
[TimeControl "180+1"]
[EndTime "11:40:51 PDT"]
[Termination "aNaartjieZA won on time"]

1. e4 {[%clk 0:03:00.9]} 1... b6 {[%clk 0:02:59]} 2. Nf3 {[%clk 0:03:00.2]} 2...
Bb7 {[%clk 0:02:58.2]} 3. d3 {[%clk 0:03:00.5]} 3... e6 {[%clk 0:02:57.6]} 4. g3
{[%clk 0:03:00]} 4... d5 {[%clk 0:02:46.9]} 5. Nbd2 {[%clk 0:02:59.7]} 5... Nf6
{[%clk 0:02:46.3]} 6. Bg2 {[%clk 0:02:55.1]} 6... Be7 {[%clk 0:02:45.9]} 7. O-O
{[%clk 0:02:54.6]} 7... c5 {[%clk 0:02:41.4]} 8. Re1 {[%clk 0:02:53.6]} 8... Nc6
{[%clk 0:02:41.4]} 9. c3 {[%clk 0:02:51.1]} 9... Qc7 {[%clk 0:02:40.7]} 10. a3
{[%clk 0:02:50]} 10... a5 {[%clk 0:02:40.5]} 11. a4 {[%clk 0:02:49.4]} 11... h6
{[%clk 0:02:28.4]} 12. h4 {[%clk 0:02:46.4]} 12... O-O {[%clk 0:02:02.1]} 13. e5
{[%clk 0:02:45.3]} 13... Nd7 {[%clk 0:02:01.7]} 14. Qe2 {[%clk 0:02:45.6]} 14...
d4 {[%clk 0:01:58.6]} 15. c4 {[%clk 0:02:45.3]} 15... Nb4 {[%clk 0:01:57.8]} 16.
Nf1 {[%clk 0:02:45.2]} 16... Rae8 {[%clk 0:01:43.6]} 17. Bf4 {[%clk 0:02:44.6]}
17... Qc6 {[%clk 0:01:41.6]} 18. b3 {[%clk 0:02:40.4]} 18... f5 {[%clk
0:01:41.1]} 19. Rad1 {[%clk 0:02:36.2]} 19... Kh8 {[%clk 0:01:31.9]} 20. Qd2
{[%clk 0:02:36.3]} 20... Rf7 {[%clk 0:01:29.5]} 21. N1h2 {[%clk 0:02:23.3]}
21... Rg8 {[%clk 0:01:27.6]} 22. h5 {[%clk 0:02:19.2]} 22... Qc8 {[%clk
0:01:27.7]} 23. Kh1 {[%clk 0:02:10.5]} 23... Nf8 {[%clk 0:01:27.5]} 24. Rg1
{[%clk 0:02:05.4]} 24... Qa8 {[%clk 0:01:27.3]} 25. Qe2 {[%clk 0:01:51.1]} 25...
Nh7 {[%clk 0:01:26.8]} 26. Nh4 {[%clk 0:01:47.7]} 26... Bxh4 {[%clk 0:01:25.3]}
27. gxh4 {[%clk 0:01:47]} 27... Bxg2+ {[%clk 0:01:25]} 28. Rxg2 {[%clk
0:01:46.9]} 28... g5 {[%clk 0:01:23.4]} 29. hxg6 {[%clk 0:01:46.5]} 29... Rxg6
{[%clk 0:01:23.5]} 30. Rg1 {[%clk 0:01:32.2]} 30... Rfg7 {[%clk 0:01:23.2]} 31.
Nf3 {[%clk 0:01:29.3]} 31... Rxg2 {[%clk 0:01:21.9]} 32. Rxg2 {[%clk 0:01:29.4]}
32... Rxg2 {[%clk 0:01:22.8]} 33. Kxg2 {[%clk 0:01:29.6]} 33... Qg8+ {[%clk
0:01:23.4]} 34. Kh2 {[%clk 0:01:26.2]} 34... Qg6 {[%clk 0:01:20.7]} 35. Ne1
{[%clk 0:01:22.1]} 35... Qg4 {[%clk 0:01:20.5]} 36. Qxg4 {[%clk 0:01:20.2]}
36... fxg4 {[%clk 0:01:21.4]} 37. Bxh6 {[%clk 0:01:19.6]} 37... Nc6 {[%clk
0:01:17]} 38. Bf4 {[%clk 0:01:17.8]} 38... Nf8 {[%clk 0:01:16.4]} 39. Kg3 {[%clk
0:01:17.9]} 39... Ng6 {[%clk 0:01:15]} 40. Kxg4 {[%clk 0:01:17.8]} 40... Kg7
{[%clk 0:01:10.6]} 41. h5 {[%clk 0:01:12.5]} 41... Ngxe5+ {[%clk 0:01:09.7]} 42.
Bxe5+ {[%clk 0:01:12.2]} 42... Nxe5+ {[%clk 0:01:10.6]} 43. Kf4 {[%clk
0:01:12.5]} 43... Nf7 {[%clk 0:01:03.6]} 44. Nf3 {[%clk 0:01:11.8]} 44... Kf6
{[%clk 0:01:03.6]} 45. Nd2 {[%clk 0:00:58.5]} 45... e5+ {[%clk 0:00:59.2]} 46.
Ke4 {[%clk 0:00:48.4]} 46... Ke6 {[%clk 0:00:56.6]} 47. f4 {[%clk 0:00:47.7]}
47... exf4 {[%clk 0:00:47.4]} 48. Kxf4 {[%clk 0:00:47.5]} 48... Ne5 {[%clk
0:00:47.9]} 49. Ke4 {[%clk 0:00:40.8]} 49... Ng4 {[%clk 0:00:47.7]} 50. Nf3
{[%clk 0:00:38.5]} 50... Nf6+ {[%clk 0:00:47.4]} 51. Kf4 {[%clk 0:00:37.1]}
51... Nxh5+ {[%clk 0:00:48.3]} 52. Kg5 {[%clk 0:00:37.1]} 52... Ng3 {[%clk
0:00:45.8]} 53. Nd2 {[%clk 0:00:32]} 53... Ne2 {[%clk 0:00:41.4]} 54. Kg4 {[%clk
0:00:26.4]} 54... Nc1 {[%clk 0:00:39.1]} 55. Kf3 {[%clk 0:00:26.6]} 55... Nxd3
{[%clk 0:00:38.5]} 56. Ke4 {[%clk 0:00:26.9]} 56... Ne5 {[%clk 0:00:36.8]} 57.
Kf4 {[%clk 0:00:25.2]} 57... Nf7 {[%clk 0:00:26.1]} 58. Ne4 {[%clk 0:00:23.5]}
58... Nd8 {[%clk 0:00:23.6]} 59. Ng5+ {[%clk 0:00:23.2]} 59... Kd6 {[%clk
0:00:20.5]} 60. Ke4 {[%clk 0:00:23.1]} 60... Nc6 {[%clk 0:00:13]} 61. Nf7+
{[%clk 0:00:20.2]} 61... Ke6 {[%clk 0:00:12.7]} 62. Ng5+ {[%clk 0:00:20.3]}
62... Kf6 {[%clk 0:00:12.5]} 63. Nh7+ {[%clk 0:00:20.4]} 63... Ke7 {[%clk
0:00:10.2]} 64. Ng5 {[%clk 0:00:20.5]} 64... Nb4 {[%clk 0:00:09.8]} 65. Nf3
{[%clk 0:00:20.6]} 65... Ke6 {[%clk 0:00:07.9]} 66. Ng5+ {[%clk 0:00:20.5]}
66... Kf6 {[%clk 0:00:07.6]} 67. Nh7+ {[%clk 0:00:20.8]} 67... Ke7 {[%clk
0:00:04.5]} 68. Ng5 {[%clk 0:00:20.9]} 68... Nc2 {[%clk 0:00:04.1]} 69. Nf3
{[%clk 0:00:20]} 69... Kd6 {[%clk 0:00:02.2]} 70. Kd3 {[%clk 0:00:18.2]} 70...
Nb4+ {[%clk 0:00:02]} 71. Ke4 {[%clk 0:00:18.2]} 71... Nc2 {[%clk 0:00:02.4]}
72. Nd2 {[%clk 0:00:17.7]} 72... Ne3 {[%clk 0:00:02.3]} 73. Nf3 {[%clk 0:00:17]}
73... Nd1 {[%clk 0:00:02.1]} 74. Kd3 {[%clk 0:00:14.3]} 74... Nc3 {[%clk
0:00:03]} 75. Nd2 {[%clk 0:00:12.1]} 75... Ke5 {[%clk 0:00:02.1]} 76. Nf3+
{[%clk 0:00:12.1]} 76... Kf4 {[%clk 0:00:02.3]} 77. Nh4 {[%clk 0:00:12]} 77...
Nd1 {[%clk 0:00:01.3]} 78. Ng6+ {[%clk 0:00:11.9]} 78... Kf5 {[%clk 0:00:01.4]}
79. Ne7+ {[%clk 0:00:11.9]} 79... Ke6 {[%clk 0:00:01.3]} 80. Nd5 {[%clk
0:00:12]} 1-0

[Event "*** Titled Tuesday Blitz"]
[Site "Chess.com"]
[Date "2020.04.21"]
[Round "8"]
[White "Beca95"]
[Black "jacky72"]
[Result "1-0"]
[WhiteElo "2867"]
[BlackElo "2719"]
[TimeControl "180+1"]
[EndTime "11:41:08 PDT"]
[Termination "Beca95 won by checkmate"]

1. d4 {[%clk 0:03:00.9]} 1... Nf6 {[%clk 0:02:59.4]} 2. Nf3 {[%clk 0:03:01.1]}
2... d5 {[%clk 0:02:59.4]} 3. Bf4 {[%clk 0:03:00.8]} 3... c6 {[%clk 0:02:56.3]}
4. Nbd2 {[%clk 0:02:59.7]} 4... e6 {[%clk 0:02:52.4]} 5. c3 {[%clk 0:02:59.6]}
5... Be7 {[%clk 0:02:52.8]} 6. e3 {[%clk 0:02:58.8]} 6... O-O {[%clk 0:02:52.8]}
7. h3 {[%clk 0:02:56.6]} 7... Qb6 {[%clk 0:02:49.5]} 8. Rb1 {[%clk 0:02:55.8]}
8... c5 {[%clk 0:02:49.6]} 9. Bd3 {[%clk 0:02:55.8]} 9... Nc6 {[%clk 0:02:47.4]}
10. O-O {[%clk 0:02:55.3]} 10... a5 {[%clk 0:02:29.5]} 11. a4 {[%clk 0:02:54.1]}
11... Bd7 {[%clk 0:02:24.9]} 12. Bh2 {[%clk 0:02:50.1]} 12... h6 {[%clk
0:02:23.7]} 13. Re1 {[%clk 0:02:46.2]} 13... Rfd8 {[%clk 0:02:19.7]} 14. Ne5
{[%clk 0:02:43.6]} 14... Nxe5 {[%clk 0:02:19.4]} 15. dxe5 {[%clk 0:02:43.7]}
15... Ne8 {[%clk 0:02:11.9]} 16. Qg4 {[%clk 0:02:42.1]} 16... c4 {[%clk
0:02:04.9]} 17. Bc2 {[%clk 0:02:42.1]} 17... f5 {[%clk 0:01:56]} 18. Qe2 {[%clk
0:02:25.6]} 18... Qc5 {[%clk 0:01:44.9]} 19. Nf3 {[%clk 0:02:25.5]} 19... Nc7
{[%clk 0:01:42.3]} 20. g4 {[%clk 0:02:24.6]} 20... Rf8 {[%clk 0:01:33.2]} 21.
Nd4 {[%clk 0:02:22.7]} 21... b5 {[%clk 0:01:15.8]} 22. axb5 {[%clk 0:02:16.4]}
22... Nxb5 {[%clk 0:01:16.7]} 23. gxf5 {[%clk 0:02:15.8]} 23... exf5 {[%clk
0:01:17.6]} 24. Kh1 {[%clk 0:02:15.3]} 24... Qb6 {[%clk 0:01:05.9]} 25. Rg1
{[%clk 0:02:12.9]} 25... Nxd4 {[%clk 0:01:04]} 26. exd4 {[%clk 0:02:11.2]} 26...
Qe6 {[%clk 0:01:02.6]} 27. Qh5 {[%clk 0:02:04]} 27... f4 {[%clk 0:00:59.1]} 28.
Rg6 {[%clk 0:01:52]} 28... Qxh3 {[%clk 0:00:47.8]} 29. Qe2 {[%clk 0:01:04.5]}
29... f3 {[%clk 0:00:40.9]} 30. Qe3 {[%clk 0:00:56.6]} 30... Bf5 {[%clk
0:00:40]} 31. Bxf5 {[%clk 0:00:54.6]} 31... Rxf5 {[%clk 0:00:40.9]} 32. Rbg1
{[%clk 0:00:51.6]} 32... Bg5 {[%clk 0:00:32.9]} 33. Qe1 {[%clk 0:00:43.5]} 33...
Bf4 {[%clk 0:00:28.7]} 34. Rxg7+ {[%clk 0:00:43.8]} 34... Kh8 {[%clk 0:00:28.9]}
35. R1g3 {[%clk 0:00:43.9]} 35... Bxg3 {[%clk 0:00:18.4]} 36. Rxg3 {[%clk
0:00:44.8]} 36... Qh4 {[%clk 0:00:17]} 37. e6 {[%clk 0:00:44.7]} 37... Rh5
{[%clk 0:00:15.7]} 38. Qg1 {[%clk 0:00:44.9]} 38... Re8 {[%clk 0:00:15.4]} 39.
Rg4 {[%clk 0:00:45]} 39... Qh3 {[%clk 0:00:11.9]} 40. e7 {[%clk 0:00:42.9]}
40... Kh7 {[%clk 0:00:06.6]} 41. Rg7+ {[%clk 0:00:42.8]} 41... Kh8 {[%clk
0:00:06.9]} 42. Rg4 {[%clk 0:00:41.1]} 42... Qxh2+ {[%clk 0:00:04.8]} 43. Qxh2
{[%clk 0:00:40.8]} 43... Rxh2+ {[%clk 0:00:05.7]} 44. Kxh2 {[%clk 0:00:41.4]}
44... Rxe7 {[%clk 0:00:06.6]} 45. Rg6 {[%clk 0:00:40.4]} 45... Re2 {[%clk
0:00:04.9]} 46. Kg3 {[%clk 0:00:40.7]} 46... Rxb2 {[%clk 0:00:04.7]} 47. Rxh6+
{[%clk 0:00:40.7]} 47... Kg7 {[%clk 0:00:04.9]} 48. Rh5 {[%clk 0:00:41.1]} 48...
Rb3 {[%clk 0:00:05.7]} 49. Rxd5 {[%clk 0:00:40.9]} 49... a4 {[%clk 0:00:06.1]}
50. Ra5 {[%clk 0:00:39.4]} 50... a3 {[%clk 0:00:06.3]} 51. Kxf3 {[%clk
0:00:39.7]} 51... Rxc3+ {[%clk 0:00:06.5]} 52. Ke4 {[%clk 0:00:40.2]} 52... Rb3
{[%clk 0:00:06.3]} 53. f4 {[%clk 0:00:37.7]} 53... Kf6 {[%clk 0:00:06.4]} 54.
Ra6+ {[%clk 0:00:36.9]} 54... Ke7 {[%clk 0:00:06.5]} 55. f5 {[%clk 0:00:37.4]}
55... c3 {[%clk 0:00:06.4]} 56. Kd3 {[%clk 0:00:37.5]} 56... Rb5 {[%clk
0:00:05.3]} 57. f6+ {[%clk 0:00:34]} 57... Kf7 {[%clk 0:00:05.6]} 58. Kxc3
{[%clk 0:00:34.4]} 58... Rh5 {[%clk 0:00:04.8]} 59. Kc4 {[%clk 0:00:33.6]} 59...
Rh3 {[%clk 0:00:04.3]} 60. d5 {[%clk 0:00:33.6]} 60... Rg3 {[%clk 0:00:04.1]}
61. Kc5 {[%clk 0:00:33.8]} 61... Rc3+ {[%clk 0:00:04.3]} 62. Kd4 {[%clk
0:00:34]} 62... Rh3 {[%clk 0:00:03.8]} 63. Ke5 {[%clk 0:00:34]} 63... Re3+
{[%clk 0:00:03.7]} 64. Kd4 {[%clk 0:00:29.8]} 64... Rh3 {[%clk 0:00:03.1]} 65.
Kc5 {[%clk 0:00:30.2]} 65... Rc3+ {[%clk 0:00:02.6]} 66. Kb5 {[%clk 0:00:30.4]}
66... Rb3+ {[%clk 0:00:02.1]} 67. Kc6 {[%clk 0:00:30.7]} 67... Kxf6 {[%clk
0:00:01.7]} 68. Kc7+ {[%clk 0:00:29.5]} 68... Ke7 {[%clk 0:00:01.7]} 69. d6+
{[%clk 0:00:29.8]} 69... Kf7 {[%clk 0:00:02.1]} 70. d7 {[%clk 0:00:30.3]} 70...
Rd3 {[%clk 0:00:02.4]} 71. Rxa3 {[%clk 0:00:27]} 71... Rxa3 {[%clk 0:00:01.1]}
72. d8=Q {[%clk 0:00:27.4]} 72... Rc3+ {[%clk 0:00:01.9]} 73. Kb6 {[%clk
0:00:27.6]} 73... Rb3+ {[%clk 0:00:02.8]} 74. Kc5 {[%clk 0:00:27.3]} 74... Re3
{[%clk 0:00:03.2]} 75. Kd4 {[%clk 0:00:26.4]} 75... Re7 {[%clk 0:00:04.1]} 76.
Qd5+ {[%clk 0:00:26]} 76... Re6 {[%clk 0:00:04.3]} 77. Qf5+ {[%clk 0:00:25.7]}
77... Ke7 {[%clk 0:00:04.2]} 78. Kd5 {[%clk 0:00:26.1]} 78... Rd6+ {[%clk
0:00:04.4]} 79. Ke5 {[%clk 0:00:26.4]} 79... Rd7 {[%clk 0:00:05.3]} 80. Qh7+
{[%clk 0:00:25.9]} 80... Kd8 {[%clk 0:00:06.2]} 81. Qg8+ {[%clk 0:00:22.2]}
81... Kc7 {[%clk 0:00:07.1]} 82. Qc4+ {[%clk 0:00:22.2]} 82... Kd8 {[%clk
0:00:06.9]} 83. Qb5 {[%clk 0:00:20.8]} 83... Ke7 {[%clk 0:00:06.9]} 84. Qc6
{[%clk 0:00:20.7]} 84... Kd8 {[%clk 0:00:05.2]} 85. Qc5 {[%clk 0:00:14.1]} 85...
Re7+ {[%clk 0:00:03.3]} 86. Kd6 {[%clk 0:00:13.6]} 86... Rd7+ {[%clk 0:00:03.1]}
87. Ke6 {[%clk 0:00:14]} 87... Rd1 {[%clk 0:00:03.1]} 88. Qa5+ {[%clk
0:00:12.5]} 88... Kc8 {[%clk 0:00:03.5]} 89. Qc3+ {[%clk 0:00:11.7]} 89... Kd8
{[%clk 0:00:03.6]} 90. Qb4 {[%clk 0:00:11.1]} 90... Rd7 {[%clk 0:00:02.1]} 91.
Qb8# {[%clk 0:00:10.7]} 1-0